bitfinex/quotes_SOLUSD_20240808
["timestamp","ask_amount","ask_price","bid_price","bid_amount"]
[1723121251023,38.27,156.64,156.56,15.9678]
[1723121251328,44.6541,156.64,156.57,6.3868]
[1723121251498,44.6541,156.64,156.61,6.3852]
[1723121251499,38.27,156.62,156.61,6.3852]
[1723121251698,0.34,156.62,156.6,22.349]
[1723121251919,0.34,156.61,156.6,22.349]
[1723121252116,43.19,156.68,156.62,6.3848]
[1723121252339,43.19,156.68,156.63,6.3841]
[1723121252722,38.27,156.67,156.63,6.3841]
[1723121253126,38.27,156.67,156.64,15.9592]
[1723121253701,38.27,156.67,156.62,6.3847]
[1723121254209,38.27,156.67,156.62,6.3848]
[1723121254411,38.27,156.67,156.61,22.3477]
[1723121254611,38.27,156.65,156.61,22.3477]
[1723121254923,83.61,156.64,156.61,22.3477]
[1723121255236,0.17,156.64,156.63,6.3844]
[1723121255815,6.53459737,156.68,156.58,31.9322]
[1723121256007,38.27,156.71,156.62,31.9237]
[1723121256328,44.80312281,156.71,156.62,33.19973724]
[1723121256636,44.80312281,156.71,156.65,15.9586]
[1723121256932,44.80312281,156.71,156.67,6.3826]
[1723121257227,44.80312281,156.71,156.67,15.9566]
[1723121257435,6.53312281,156.71,156.67,15.9566]
[1723121257736,6.53312281,156.71,156.7,6.3816]
[1723121257911,6.53312281,156.71,156.69,15.9546]
[1723121258439,6.53312281,156.71,156.7,6.3816]
[1723121259257,6.53312281,156.71,156.69,15.9546]
[1723121260000,6.53312281,156.71,156.7,6.3816]
[1723121261813,6.53312281,156.71,156.69,15.9546]
[1723121262014,0.34,156.7,156.66,15.9577]
[1723121262238,83.61,156.7,156.67,6.3825]
[1723121262727,83.61,156.7,156.66,22.3408]
[1723121262912,83.61,156.7,156.67,6.3827]
[1723121263537,83.61,156.7,156.68,6.3824]
[1723121263830,83.61,156.7,156.66,15.9577]
[1723121264034,83.44,156.7,156.63,15.9607]
[1723121264236,89.8217,156.7,156.63,22.3451]
[1723121264413,83.44,156.7,156.64,6.3839]
[1723121264616,45.17,156.7,156.69,6.382]
[1723121264808,0.17,156.7,156.69,6.382]
[1723121265010,6.53312281,156.71,156.7,6.3816]
[1723121265422,6.53312281,156.71,156.69,22.3364]
[1723121265609,6.53312281,156.71,156.68,6.3823]
[1723121265812,44.80312281,156.71,156.67,6.3827]
[1723121266025,44.80312281,156.71,156.66,15.9578]
[1723121266632,6.53312281,156.71,156.7,6.3816]
[1723121270234,38.27,156.82,156.77,6.3785]
[1723121270434,38.27,156.82,156.76,6.3791]
[1723121270435,44.6467,156.82,156.76,6.3791]
[1723121270936,6.3774,156.81,156.75,15.9487]
[1723121271141,38.27,156.8,156.75,22.328]
[1723121271447,0.17,156.79,156.75,15.9487]
[1723121271851,0.17,156.79,156.71,12.6609]
[1723121272017,38.27,156.78,156.65,12.461]
[1723121272225,88.36,156.79,156.65,12.461]
[1723121272226,44.6494,156.76,156.65,12.461]
[1723121272431,38.27,156.74,156.65,12.461]
[1723121272622,0.17,156.73,156.69,22.3366]
[1723121272948,83.61,156.73,156.68,6.3823]
[1723121273134,83.61,156.73,156.68,15.9555]
[1723121273318,83.61,156.73,156.69,6.3817]
[1723121273523,83.61,156.73,156.68,15.9555]
[1723121273721,83.61,156.73,156.69,6.3819]
[1723121273923,83.61,156.73,156.69,6.3818]
[1723121274334,83.61,156.73,156.7,6.3815]
[1723121274540,45.34,156.73,156.72,6.3808]
[1723121275039,43.19,156.79,156.72,15.9513]
[1723121275245,6.3786,156.78,156.72,15.9513]
[1723121275446,6.3788,156.77,156.72,15.9513]
[1723121275619,38.27,156.77,156.72,15.9513]
[1723121275822,38.27,156.76,156.7,6.3815]
[1723121276042,38.27,156.76,156.71,6.3808]
[1723121276349,83.61,156.75,156.71,6.381]
[1723121276522,43.19,156.79,156.72,6.3806]
[1723121276850,38.27,156.78,156.71,15.9525]
[1723121277048,38.27,156.78,156.72,6.3807]
[1723121277256,38.27,156.78,156.73,15.9503]
[1723121277553,38.27,156.78,156.75,6.3795]
[1723121277738,38.27,156.78,156.73,15.9503]
[1723121278444,38.27,156.77,156.73,15.9503]
[1723121279439,38.27,156.8,156.73,15.9503]
[1723121279653,38.27,156.8,156.75,15.9482]
[1723121279832,38.27,156.8,156.76,6.3791]
[1723121280032,38.27,156.8,156.75,22.3275]
[1723121280340,38.27,156.8,156.73,6.3803]
[1723121280341,38.27,156.76,156.73,6.3803]
[1723121280859,38.27,156.76,156.72,15.9518]
[1723121281019,44.82128603,156.75,156.72,15.9518]
[1723121281351,0.17,156.74,156.72,15.9518]
[1723121281550,0.34,156.74,156.72,22.3325]
[1723121281748,45.34,156.74,156.72,15.9518]
[1723121281948,0.34,156.74,156.72,6.3805]
[1723121282126,45.34,156.74,156.67,31.9136]
[1723121282465,45.34,156.74,156.72,22.3317]
[1723121282466,0.34,156.74,156.72,22.3317]
[1723121282640,0.34,156.74,156.72,15.9512]
[1723121282827,6.55128603,156.75,156.74,6.3799]
[1723121283371,3.29958603,156.75,156.74,6.3799]
[1723121283657,3.37586425,156.83,156.8,15.9433]
[1723121283863,3.37586425,156.83,156.82,6.3767]
[1723121284155,3.37586425,156.83,156.81,6.377]
[1723121284323,48.02246425,156.83,156.77,15.9467]
[1723121284526,48.02216425,156.83,156.73,12.195]
[1723121284726,41.64586425,156.83,156.73,12.195]
[1723121285343,41.64586425,156.83,156.71,31.9047]
[1723121285531,45.34,156.82,156.76,15.9471]
[1723121285750,41.64586425,156.83,156.81,6.377]
[1723121285751,3.37586425,156.83,156.81,6.377]
[1723121285933,3.37586425,156.83,156.75,31.8966]
[1723121286550,3.37586425,156.83,156.72,1.27567521]
[1723121286724,3.37586425,156.83,156.72,66.27567521]
[1723121287135,0.17,156.82,156.72,66.27567521]
[1723121287336,3.37586425,156.83,156.72,86.27567521]
[1723121287528,3.37586425,156.83,156.82,6.3767]
[1723121287842,3.37586425,156.83,156.8,0.0004]
[1723121289150,3.37586425,156.83,156.82,22.3185]
[1723121290157,0.8581843,156.83,156.82,22.3185]
[1723121290636,0.8581843,156.83,156.81,6.3769]
[1723121290847,0.8581843,156.83,156.8,0.0004]
[1723121291146,0.8581843,156.83,156.75,31.8966]
[1723121291537,0.8581843,156.83,156.69,20.0]
[1723121291740,0.8581843,156.83,156.65,20.0]
[1723121291978,0.8581843,156.83,156.67,45.0682]
[1723121291979,43.01,156.8,156.67,45.0682]
[1723121292131,20.0,156.79,156.68,1.27583998]
[1723121292347,43.01,156.8,156.74,6.3799]
[1723121292532,51.7181,156.79,156.71,22.3334]
[1723121292726,0.34,156.79,156.68,33.18649725]
[1723121292929,0.34,156.79,156.68,31.9105]
[1723121293128,38.27,156.78,156.7,15.9531]
[1723121293350,83.61,156.77,156.68,31.9105]
[1723121293559,45.34,156.77,156.72,15.951]
[1723121293733,51.7188,156.77,156.69,22.3366]
[1723121293934,0.34,156.77,156.69,15.955]
[1723121294254,81.28,156.74,156.62,77.344]
[1723121294432,0.34,156.73,156.71,6.381]
[1723121294627,0.34,156.73,156.66,31.915]
[1723121294628,0.17,156.73,156.7,22.3352]
[1723121294868,0.17,156.72,156.66,15.9573]
[1723121295359,20.0,156.75,156.66,31.9144]
[1723121295583,6.57951074,156.76,156.75,22.3284]
[1723121295742,6.57951074,156.76,156.73,6.3799]
[1723121296064,20.0,156.75,156.72,22.3325]
[1723121296436,6.57951074,156.76,156.75,15.9489]
[1723121296637,6.57951074,156.76,156.75,22.3284]
[1723121296835,6.57951074,156.76,156.73,6.3803]
[1723121297052,6.57951074,156.76,156.67,1.2756236]
[1723121297267,38.27,156.75,156.69,6.3816]
[1723121297451,38.27,156.75,156.71,6.381]
[1723121297636,55.96871074,156.76,156.7,15.9532]
[1723121298157,38.27,156.75,156.66,31.9144]
[1723121298363,38.27,156.75,156.6,20.0]
[1723121298364,38.27,156.73,156.67,22.3396]
[1723121298543,38.27,156.71,156.64,15.96]
[1723121298744,0.34,156.7,156.68,6.3823]
[1723121298980,0.34,156.7,156.67,22.3398]
[1723121299136,45.34,156.7,156.65,6.3835]
[1723121299342,45.34,156.7,156.64,15.9599]
[1723121299538,0.34,156.7,156.68,6.3824]
[1723121299771,103.61,156.71,156.66,15.9571]
[1723121300059,0.17,156.69,156.62,15.9612]
[1723121300265,103.61,156.71,156.61,1.2765667]
[1723121300446,65.34,156.71,156.64,31.9203]
[1723121300653,87.85951074,156.76,156.64,31.9203]
[1723121300873,44.84951074,156.76,156.65,1.27597528]
[1723121301074,44.84951074,156.76,156.71,15.9522]
[1723121301248,44.84951074,156.76,156.68,15.9559]
[1723121301893,38.27,156.73,156.69,6.3817]
[1723121302041,38.27,156.73,156.64,31.9203]
[1723121302042,38.27,156.73,156.67,15.9562]
[1723121302243,103.44,156.72,156.64,31.9203]
[1723121302475,20.17,156.72,156.64,31.9203]
[1723121302653,0.17,156.72,156.69,6.3818]
[1723121302860,0.17,156.72,156.65,1.27629548]
[1723121303051,0.17,156.72,156.71,6.3812]
[1723121303375,20.0,156.75,156.71,6.3812]
[1723121303587,20.0,156.75,156.71,6.0615634]
[1723121303750,35.25,156.74,156.71,6.0615634]
[1723121303948,20.0,156.73,156.71,6.0615634]
[1723121304179,6.57951074,156.76,156.72,15.9513]
[1723121304470,6.57951074,156.76,156.74,6.3797]
[1723121304647,6.57951074,156.76,156.72,15.9513]
[1723121304848,44.84951074,156.76,156.72,15.9513]
[1723121305049,73.52,156.75,156.69,15.9547]
[1723121305450,73.52,156.75,156.7,6.3812]
[1723121305663,6.59549918,156.74,156.7,6.3812]
[1723121305865,38.27,156.73,156.69,15.9547]
[1723121306174,38.27,156.71,156.66,22.3411]
[1723121306371,6.7208,156.72,156.63,15.9608]
[1723121306372,58.61,156.7,156.63,15.9608]
[1723121306547,38.61,156.7,156.59,31.9292]
[1723121306754,38.61,156.7,156.6,1.27642279]
[1723121307082,0.34,156.7,156.66,6.3831]
[1723121307247,0.34,156.7,156.69,6.382]
[1723121307448,0.17,156.7,156.69,6.382]
[1723121307653,0.17,156.7,156.67,15.9564]
[1723121307963,0.17,156.7,156.68,6.382]
[1723121308366,0.17,156.71,156.68,6.382]
[1723121308588,0.17,156.71,156.67,22.3392]
[1723121308741,73.52,156.68,156.52,20.0]
[1723121308940,35.25,156.65,156.6,15.9637]
[1723121309166,35.25,156.65,156.62,6.3848]
[1723121309406,0.34,156.64,156.62,6.3848]
[1723121309543,0.34,156.64,156.61,6.3852]
[1723121309756,0.34,156.64,156.6,15.9637]
[1723121309757,45.34,156.64,156.58,6.3864]
[1723121310052,45.34,156.64,156.57,15.9669]
[1723121310053,83.61,156.64,156.57,15.9669]
[1723121310369,83.61,156.64,156.59,6.386]
[1723121310871,45.34,156.64,156.59,15.9646]
[1723121311175,0.34,156.64,156.61,6.3852]
[1723121311475,20.34,156.64,156.61,6.3852]
[1723121311671,20.34,156.64,156.62,6.3846]
[1723121311893,20.34,156.64,156.61,6.3852]
[1723121312466,20.34,156.64,156.59,15.9646]
[1723121312467,58.61,156.64,156.59,15.9646]
[1723121312655,45.0,156.63,156.59,22.3506]
[1723121312972,0.34,156.62,156.59,15.9646]
[1723121313182,0.34,156.62,156.61,6.3852]
[1723121313378,0.17,156.62,156.61,6.3852]
[1723121313586,0.17,156.62,156.57,31.934]
[1723121313587,35.25,156.68,156.63,15.9608]
[1723121313758,12.3464,156.7,156.63,15.9608]
[1723121313759,83.27,156.67,156.63,15.9608]
[1723121313951,83.27,156.67,156.6,15.964]
[1723121314151,38.27,156.65,156.6,15.964]
[1723121314375,83.27,156.64,156.59,6.3857]
[1723121314552,6.3827,156.68,156.61,6.3851]
[1723121314757,0.17,156.67,156.61,6.3851]
[1723121314969,38.27,156.66,156.6,22.3493]
[1723121315285,38.27,156.64,156.6,22.3493]
[1723121315457,0.17,156.63,156.6,22.3492]
[1723121315783,58.44,156.65,156.6,22.3493]
[1723121316082,58.44,156.65,156.62,15.9613]
[1723121316259,58.27,156.65,156.62,15.9613]
[1723121316651,58.27,156.65,156.6,6.3856]
[1723121316903,58.27,156.65,156.58,15.9653]
[1723121317281,58.27,156.65,156.6,6.3855]
[1723121317578,45.17,156.64,156.58,17.24224828]
[1723121317776,0.17,156.63,156.61,6.3852]
[1723121318188,0.17,156.63,156.6,6.3856]
[1723121319288,0.17,156.63,156.62,6.3848]
[1723121319460,0.17,156.63,156.61,6.3852]
[1723121319690,0.17,156.63,156.6,15.9634]
[1723121319880,0.17,156.63,156.6,22.349]
[1723121320181,0.17,156.63,156.6,15.9634]
[1723121320482,0.17,156.63,156.6,22.349]
[1723121320857,0.17,156.63,156.61,6.3852]
[1723121321083,0.17,156.63,156.6,22.349]
[1723121321461,38.27,156.62,156.57,15.9671]
[1723121321757,83.61,156.61,156.57,15.9671]
[1723121321966,0.17,156.6,156.54,15.97]
[1723121322156,58.44,156.6,156.54,15.97]
[1723121322365,45.17,156.59,156.55,6.3873]
[1723121322565,45.17,156.59,156.56,6.3873]
[1723121322566,0.17,156.58,156.56,6.3873]
[1723121322770,38.44,156.58,156.56,6.3873]
[1723121322978,0.17,156.57,156.56,6.3873]
[1723121323379,0.17,156.57,156.54,15.97]
[1723121323585,0.17,156.57,156.54,22.358]
[1723121323773,0.17,156.57,156.54,15.97]
[1723121323974,0.17,156.57,156.45,31.0006]
[1723121323975,0.17,156.57,156.5,15.9735]
[1723121324181,38.27,156.54,156.48,6.3905]
[1723121324401,38.27,156.52,156.48,6.3905]
[1723121324882,45.34,156.51,156.48,6.3905]
[1723121325188,83.61,156.51,156.47,15.9773]
[1723121325688,0.34,156.51,156.5,6.3897]
[1723121326265,20.0,156.53,156.49,15.9745]
[1723121326459,30.9947,156.61,156.54,6.3881]
[1723121326460,20.0,156.56,156.54,6.3881]
[1723121326682,38.27,156.62,156.46,31.9557]
[1723121326967,6.59643867,156.64,156.47,46.27582429]
[1723121327170,12.98053867,156.64,156.57,6.3866]
[1723121327370,0.31982472,156.62,156.57,6.3866]
[1723121327691,0.31982472,156.62,156.61,6.3852]
[1723121327874,48.0213,156.7,156.61,6.3852]
[1723121327875,38.27,156.7,156.63,6.3844]
[1723121328076,38.27,156.7,156.59,31.9302]
[1723121328288,38.27,156.7,156.64,6.384]
[1723121328595,38.27,156.67,156.61,6.385]
[1723121328768,38.27,156.67,156.6,15.9638]
[1723121328970,38.27,156.67,156.62,6.3847]
[1723121329169,44.6528,156.67,156.6,15.9638]
[1723121329375,38.27,156.67,156.6,15.9638]
[1723121329575,38.27,156.67,156.61,6.3849]
[1723121329791,38.27,156.66,156.61,6.3849]
[1723121329967,38.27,156.66,156.63,6.3844]
[1723121330187,0.17,156.65,156.63,6.3844]
[1723121330589,0.17,156.65,156.62,6.3848]
[1723121330996,0.17,156.65,156.6,15.9638]
[1723121331299,38.27,156.65,156.61,6.3852]
[1723121331467,83.61,156.64,156.57,15.9669]
[1723121331790,65.0,156.63,156.57,15.9669]
[1723121331987,38.44,156.62,156.58,6.3864]
[1723121332185,83.44,156.61,156.54,47.9093]
[1723121332390,0.34,156.6,156.54,47.9093]
[1723121332591,0.34,156.6,156.54,15.97]
[1723121332592,38.27,156.59,156.54,15.97]
[1723121332895,38.27,156.57,156.52,6.3889]
[1723121333077,38.27,156.55,156.51,15.9729]
[1723121333284,83.61,156.54,156.51,15.9729]
[1723121333469,0.17,156.53,156.51,15.9729]
[1723121334186,0.17,156.53,156.52,6.3889]
[1723121334697,0.17,156.53,156.51,22.3621]
[1723121334995,0.17,156.53,156.49,6.3898]
[1723121335167,83.61,156.54,156.51,6.3893]
[1723121336090,83.61,156.54,156.52,6.3888]
[1723121337493,38.27,156.57,156.48,31.9521]
[1723121337794,38.27,156.55,156.51,22.3624]
[1723121337999,38.27,156.55,156.48,31.9521]
[1723121338209,38.27,156.55,156.51,6.3892]
[1723121338568,38.27,156.53,156.47,6.3909]
[1723121338783,83.27,156.52,156.5,6.3897]
[1723121338983,38.44,156.52,156.51,6.3893]
[1723121339284,0.34,156.52,156.51,6.3893]
[1723121339684,0.17,156.52,156.51,6.3893]
[1723121339899,38.27,156.59,156.53,6.3884]
[1723121340292,38.27,156.59,156.54,6.388]
[1723121340693,38.27,156.59,156.52,15.9721]
[1723121340694,38.27,156.57,156.53,6.3884]
[1723121340897,58.27,156.56,156.52,22.3606]
[1723121341080,38.27,156.56,156.52,15.9721]
[1723121341275,83.44,156.55,156.52,15.9721]
[1723121341485,83.44,156.55,156.51,6.3892]
[1723121341685,20.0,156.54,156.49,15.975]
[1723121341922,45.34,156.53,156.49,15.975]
[1723121342279,38.27,156.52,156.49,15.975]
[1723121342483,83.61,156.51,156.46,6.3914]
[1723121342699,58.27,156.5,156.45,22.3702]
[1723121342879,0.34,156.49,156.45,15.9785]
[1723121343079,0.65995162,156.49,156.44,6.3919]
[1723121343301,38.27,156.48,156.42,15.982]
[1723121343495,7.05015162,156.49,156.42,15.982]
[1723121343496,103.61,156.47,156.43,6.3926]
[1723121343694,103.75995162,156.47,156.42,15.982]
[1723121343879,0.17,156.46,156.42,6.3927]
[1723121344077,0.17,156.46,156.41,22.3762]
[1723121344279,0.31995162,156.45,156.41,22.3762]
[1723121344501,38.61,156.44,156.38,22.3812]
[1723121344694,83.27,156.43,156.37,9.99594081]
[1723121344887,0.34,156.42,156.4,22.3776]
[1723121345089,0.34,156.42,156.38,6.3943]
[1723121345287,0.65995162,156.42,156.37,25.98344081]
[1723121345514,0.65995162,156.42,156.4,6.3935]
[1723121345679,0.65995162,156.42,156.39,15.985]
[1723121345879,0.65995162,156.42,156.37,41.97064081]
[1723121346080,0.65995162,156.42,156.38,6.3946]
[1723121346386,38.92995162,156.42,156.37,16.39094081]
[1723121346593,45.0,156.41,156.39,6.3942]
[1723121346788,0.34,156.4,156.39,6.3942]
[1723121347019,0.34,156.4,156.37,9.99594081]
[1723121347307,38.44,156.4,156.38,6.3946]
[1723121347487,45.17,156.39,156.38,6.3946]
[1723121347688,83.61,156.39,156.38,6.3946]
[1723121347907,0.34,156.39,156.38,6.3946]
[1723121348225,0.34,156.39,156.37,9.99594081]
[1723121348513,0.17,156.39,156.38,6.3946]
[1723121348683,0.17,156.39,156.37,9.99594081]
[1723121349011,0.17,156.38,156.37,9.99594081]
[1723121349388,0.17,156.38,156.37,16.39094081]
[1723121350308,0.17,156.38,156.36,22.383]
[1723121350482,38.44,156.39,156.36,22.383]
[1723121350679,0.17,156.38,156.33,15.9918]
[1723121350906,38.27,156.37,156.25,31.9994]
[1723121351214,38.27,156.33,156.29,15.995]
[1723121351418,73.52,156.31,156.25,15.9993]
[1723121351915,38.27,156.29,156.23,6.4007]
[1723121352212,38.27,156.29,156.1,12.4454]
[1723121352213,38.27,156.23,156.1,12.4454]
[1723121352421,44.6709,156.23,156.16,6.4036]
[1723121352707,38.27,156.21,156.15,6.4037]
[1723121352894,38.27,156.19,156.14,22.4154]
[1723121353095,38.27,156.17,156.11,7.2634843]
[1723121353281,38.27,156.15,156.11,0.8581843]
[1723121353485,38.27,156.13,156.11,0.8581843]
[1723121353681,38.44,156.12,156.11,0.6781843]
[1723121353914,38.44,156.12,156.04,6.4085]
[1723121353915,38.27,156.1,156.04,6.4085]
[1723121354087,38.27,156.1,156.02,16.0227]
[1723121354292,38.27,156.06,155.99,6.4105]
[1723121354487,44.6781,156.06,155.98,22.4385]
[1723121354700,38.27,156.04,155.99,14.10104656]
[1723121355010,38.27,156.04,155.87,1.28220753]
[1723121355190,1.03009411,155.99,155.96,16.8877843]
[1723121355917,6.4023,156.2,155.98,12.2816]
[1723121356215,6.4023,156.2,156.09,6.4065]
[1723121356216,7.75568862,156.2,156.09,6.4065]
[1723121356521,7.75568862,156.2,156.03,32.0436]
[1723121356522,38.27,156.19,156.03,33.32502831]
[1723121356695,38.27,156.18,156.13,16.0115]
[1723121356883,38.27,156.18,156.16,22.412]
[1723121357488,13.2982,156.27,156.26,6.3995]
[1723121357489,38.27,156.27,156.26,6.3995]
[1723121357792,30.8072,156.35,156.25,15.9992]
[1723121358612,38.27,156.34,156.27,6.3988]
[1723121358794,38.27,156.36,156.28,6.3987]
[1723121359122,6.64628556,156.37,156.35,22.385]
[1723121359286,18.4041,156.45,156.37,6.3949]
[1723121359491,38.27,156.41,156.37,6.3949]
[1723121359803,38.27,156.41,156.35,15.9893]
[1723121360006,38.27,156.38,156.31,15.9934]
[1723121360307,38.27,156.38,156.32,6.3971]
[1723121360508,38.27,156.38,156.31,15.9934]
[1723121360928,6.398,156.3,156.22,6.4009]
[1723121361128,38.27,156.29,156.22,16.0025]
[1723121361291,38.27,156.29,156.22,22.4033]
[1723121361492,38.27,156.26,156.18,16.0068]
[1723121361808,38.27,156.24,156.15,6.4037]
[1723121361992,38.27,156.21,156.17,6.403]
[1723121362186,103.61,156.2,156.11,44.0345]
[1723121362389,103.61,156.2,156.17,6.4028]
[1723121362390,103.44,156.2,156.17,6.4028]
[1723121362614,103.44,156.2,156.16,16.0082]
[1723121362615,0.17,156.19,156.16,16.0082]
[1723121362996,0.17,156.19,156.11,12.0071]
[1723121363203,0.17,156.19,156.1,32.0302]
[1723121363411,0.17,156.19,155.98,31.3166]
[1723121363412,38.27,156.18,155.98,31.3166]
[1723121363616,38.27,156.12,156.05,32.0409]
[1723121363823,83.44,156.11,156.09,16.0161]
[1723121363995,0.17,156.1,156.09,16.0161]
[1723121364197,0.17,156.1,156.07,6.407]
[1723121364198,38.27,156.09,156.07,6.4073]
[1723121364406,83.61,156.08,156.05,16.0196]
[1723121364607,45.0,156.11,156.05,16.0196]
[1723121364608,38.27,156.12,156.08,14.95086606]
[1723121364813,83.61,156.11,156.08,14.95086606]
[1723121365218,44.19234534,156.26,156.19,6.4023]
[1723121365424,6.3988,156.28,156.07,43.41]
[1723121365630,38.27,156.24,156.07,43.41]
[1723121365821,38.27,156.24,156.15,22.4134]
[1723121365996,38.27,156.23,156.17,6.4032]
[1723121366197,38.27,156.2,156.15,16.0094]
[1723121366502,38.27,156.18,156.14,6.4045]
[1723121366704,38.27,156.14,156.0,32.0499]
[1723121366912,38.27,156.12,156.04,32.041]
[1723121367105,38.44,156.13,156.12,6.4053]
[1723121367311,83.61,156.13,156.11,6.4056]
[1723121367630,83.44,156.12,156.1,6.406]
[1723121367814,0.17,156.11,156.05,16.0198]
[1723121368118,0.17,156.11,156.08,16.0172]
[1723121368428,0.17,156.11,156.04,16.0206]
[1723121368630,0.17,156.11,156.07,6.4072]
[1723121368924,0.17,156.11,156.06,6.4077]
[1723121369104,0.17,156.11,156.04,16.0206]
[1723121369302,0.17,156.11,156.05,6.4081]
[1723121369504,0.17,156.11,156.0,16.0247]
[1723121369505,38.27,156.09,156.0,16.0247]
[1723121369830,38.27,156.07,156.03,6.4089]
[1723121370116,38.27,156.05,156.04,6.4086]
[1723121370336,0.34,156.05,156.04,6.4086]
[1723121370496,0.17,156.05,156.04,6.4086]
[1723121370832,43.41,156.2,156.1,16.0145]
[1723121371001,43.41,156.12,156.04,6.4085]
[1723121371308,38.27,156.18,156.02,16.023]
[1723121371507,38.27,156.09,155.96,16.8870843]
[1723121371698,43.41,156.08,155.96,16.8870843]
[1723121371898,88.27,156.07,155.96,16.8870843]
[1723121372396,38.27,156.05,155.96,16.8870843]
[1723121372632,38.27,156.03,156.01,6.4096]
[1723121372928,20.0,156.04,156.01,6.4096]
[1723121373103,20.0,156.04,156.0,16.025]
[1723121373303,6.4052,156.13,156.03,6.4087]
[1723121373518,13.1026,156.17,156.0,16.025]
[1723121373720,6.4071,156.08,156.0,16.025]
[1723121373908,38.27,156.06,155.98,6.4108]
[1723121374100,38.27,156.04,155.96,7.2697843]
[1723121374306,38.27,156.02,155.97,6.4112]
[1723121374508,38.27,156.02,155.99,6.4104]
[1723121374708,20.0,156.03,155.97,16.0282]
[1723121374709,20.34,156.01,155.97,16.0282]
[1723121374901,38.27,156.05,156.01,16.0241]
[1723121375106,13.1026,156.17,155.96,0.8581843]
[1723121375107,13.1026,156.17,156.1,6.4059]
[1723121375333,12.0825,156.23,156.01,63.85469809]
[1723121375624,6.64640209,156.18,156.13,16.0118]
[1723121375834,6.4021,156.2,156.0,44.1335]
[1723121376003,38.27,156.16,156.09,6.4063]
[1723121376203,38.27,156.16,156.08,16.0173]
[1723121376401,38.27,156.16,156.1,6.406]
[1723121376606,6.64297307,156.15,156.13,6.4047]
[1723121376838,6.64297307,156.15,156.02,1.2811814]
[1723121376839,13.2819,156.29,156.15,16.0092]
[1723121377020,44.91791366,156.21,156.12,32.0249]
[1723121377331,38.27,156.21,156.01,52.0484]
[1723121377538,43.41,156.22,156.13,16.0118]
[1723121377539,38.27,156.19,156.13,16.0118]
[1723121377746,38.27,156.14,156.06,6.4076]
[1723121378030,38.27,156.14,156.06,32.0375]
[1723121378509,38.27,156.14,156.1,16.0146]
[1723121378710,38.27,156.12,156.1,22.4206]
[1723121378907,83.44,156.11,156.01,32.0484]
[1723121379124,83.44,156.11,156.02,6.4091]
[1723121379125,38.27,156.09,156.02,6.4091]
[1723121379315,20.0,156.1,156.02,6.4091]
[1723121379316,38.27,156.07,156.02,16.0234]
[1723121379517,38.27,156.05,156.02,22.4327]
[1723121379738,0.17,156.04,156.02,22.4327]
[1723121380035,83.61,156.04,156.02,16.0234]